Cogmind - Beta 14 @@@ ROGUE MODE // 2024.10.14 @ 21:18:10 Player: Shockbound Result: Destroyed by Y-45 Defender with Heavy Assault Rifle Performance ------------- Evolutions (1) 500 Regions Visited (2) 400 Robots Destroyed (15) 75 Value Destroyed (386) 386 Prototype IDs (1) 20 Alien Tech Used (0) 0 Bonus (40) 40 TOTAL SCORE: 1421 Bonus ------- High Alert Combat Kills 40 Cogmind --------- Core Integrity 0/400 Matter 280/300 Energy 60/100 System Corruption 0% Temperature Critical (509) Movement Core (100) Ox1 Location -9/Materials Parts ------- > --- POWER (1) -------- (None) > --- PROPULSION (4) --- (None) > --- UTILITY (2) ------ Terrain Scan Processor > --- WEAPON (2) ------- Improved Medium Laser Improved Medium Laser > --- INVENTORY (5) ---- Small Storage Unit Faulty Improved Medium Laser Peak State ------------ > --- POWER ------------ Ion Engine > --- PROPULSION ------- Aluminum Leg Aluminum Leg Aluminum Leg Aluminum Leg > --- UTILITY ---------- Terrain Scan Processor > --- WEAPON ----------- Improved Medium Laser Improved Medium Laser > --- INVENTORY -------- Small Storage Unit [Rating: 13] Favorites ----------- Power Ion Engine Engine Ion Engine Propulsion Aluminum Leg Leg Aluminum Leg Flight Unit Flight Unit Utility Small Storage Unit Storage Small Storage Unit Processor Terrain Scan Processor Weapon Assault Rifle Energy Gun EM Pulse Gun Ballistic Gun Assault Rifle Build | -11 -10 -9 ------- Run | Yrd Mat Mat Slots Evolved 2 | . . 2 Power . | . . . Propulsion 2 | . . 2 Utility . | . . . Weapon . | . . . Parts Attached 19 | 5 1 13 Power 3 | 1 . 2 Engine 3 | 1 . 2 Core . | . . . Reactor . | . . . Propulsion 8 | 2 . 6 Treads . | . . . Leg 6 | 2 . 4 Wheel . | . . . Hover . | . . . Flight 2 | . . 2 Utility 2 | 1 . 1 Device . | . . . Storage 1 | 1 . . Processor 1 | . . 1 Hackware . | . . . Protection . | . . . Artifact . | . . . Weapon 6 | 1 1 4 Energy Gun 5 | . 1 4 Energy Cannon . | . . . Ballistic Gun 1 | 1 . . Ballistic Cannon . | . . . Launcher . | . . . Special Weapon . | . . . Impact Weapon . | . . . Slashing Weapon . | . . . Piercing Weapon . | . . . Special Melee Weapon . | . . . Unidentified Prototypes 1 | . . 1 Parts Lost 13 | . 2 11 Power 2 | . . 2 Propulsion 7 | . 1 6 Utility . | . . . Weapon 4 | . 1 3 Highest Loss Streak 7 | . 2 7 To Critical Strikes . | . . . Average Slot Usage (%) 66 | . 85 50 Engine 9 | . 14 6 Leg 17 | . 28 7 Flight 5 | . . 11 Storage 6 | . 14 . Processor 5 | . . 9 Energy Gun 11 | . 14 9 Ballistic Gun 9 | . 14 5 Peak Build Rating 13 | 5 6 13 Average Rating 6 | 3 5 7 On Entrance 3 | . 5 4 Naked Turns . | . . . Heaviest Build 14 | 12 14 6 Greatest Support 30 | 20 20 30 Greatest Overweight (x) 2 | 2 1 1 Average Overweight (x) . | . . . Largest Inventory Capacity 8 | 8 8 8 Average Capacity 6 | 7 8 5 Most Carried 4 | 2 3 4 Average Carried 1 | . 1 1 Final Capacity 8 | 8 8 5 Final Carried 3 | 1 3 2 Class Distribution -------------------- 89% | Mutant 10% | Scavenger-Mutant Dominant Class ---------------- Mutant | -10/Materials Mutant | -9/Materials Resources | -11 -10 -9 ----------- Run | Yrd Mat Mat Matter Collected 384 | 246 38 100 Remotely . | . . . Salvage Created 468 | . 58 410 Parts 27 | . 5 22 Haulers Intercepted . | . . . Recyclers Shooed 1 | . 1 . Parts Field Recycled . | . . . Retrieved Matter . | . . . Parts Self-Destructed . | . . . Prevented . | . . . Kills | -11 -10 -9 ------- Run | Yrd Mat Mat Combat Hostiles Destroyed 15 | . 3 12 Guns 15 | . 3 12 Classes Destroyed 2 | . 1 1 Swarmer 6 | . 3 3 Grunt 9 | . . 9 Best Kill Streak 10 | . 3 10 Combat Bots Only 10 | . 3 10 Max Kills in Single Turn 1 | . 1 1 Gunslinging . | . . . Exploded . | . . . Melee . | . . . Uniques/NPCs Destroyed . | . . . Combat | -11 -10 -9 -------- Run | Yrd Mat Mat Hostile Shots Fired 181 | . 35 146 Missed 55 | . 9 46 Damage Taken 1407 | . 239 1168 Core 423 | . 17 406 Absorbed by Shields . | . . . Core Remaining (%) 96 | 100 93 . Volleys Fired 31 | . 11 20 Largest 2 | . 2 2 Hottest 112 | . 60 112 Shots Fired 60 | . 22 38 Gun 60 | . 22 38 Cannon . | . . . Launcher . | . . . Special . | . . . Kinetic 11 | . 11 . Thermal 38 | . . 38 Explosive . | . . . Electromagnetic 11 | . 11 . Robot Hit Streak 7 | . 4 7 Robot Miss Streak 4 | . 3 4 Penetration Max . | . . . Secondary Targets 1 | . . 1 Max Gunslinging Chain 1 | . . 1 Shots Hit Robots 32 | . 9 23 Core Hits 18 | . 4 14 Critical Kills . | . . . Critical Parts Destroyed . | . . . Critical Strikes 3 | . . 3 Burn 3 | . . 3 Melee Attacks . | . . . Impact . | . . . Slashing . | . . . Piercing . | . . . Sneak Attacks . | . . . Combat Hostiles . | . . . Follow-up Attacks . | . . . Damage Inflicted 595 | . 131 464 Guns 583 | . 121 462 Cannons . | . . . Explosions . | . . . Melee . | . . . Ramming 12 | . 10 2 Kinetic 77 | . 77 . Thermal 462 | . . 462 Explosive . | . . . Electromagnetic 44 | . 44 . Impact . | . . . Slashing . | . . . Piercing . | . . . Highest Corruption 3 | . 3 . Average Corruption 2 | . 2 . Corruption Purged . | . . . Corruption Blocked . | . . . Overload Shots . | . . . Overflow Damage . | . . . Projectiles . | . . . Explosions . | . . . Melee . | . . . Knockbacks . | . . . Impact . | . . . Kinetic . | . . . Secondary . | . . . Self-Inflicted Damage 1 | . . 1 Shots . | . . . Rammed 1 | . . 1 Targets Rammed 2 | . 1 1 Kicked 1 | . 1 . Crushed . | . . . Highest Temperature 627 | . . 627 Average Temperature 267 | . . 267 Received Heat Transfer 582 | . 39 543 Effects 10 | . . 10 Shutdowns 1 | . . 1 Energy Bleed 1 | . . 1 Interference 1 | . . 1 Matter Decay 1 | . . 1 Short Circuit 1 | . . 1 Damage (minor) 2 | . . 2 Damage (major) 3 | . . 3 Siege Activations . | . . . Robots Corrupted . | . . . Combat Hostiles . | . . . Parts Fried . | . . . Impact Corruptions . | . . . Robots Melted . | . . . Combat Hostiles . | . . . Parts Melted . | . . . Heat Transferred 1221 | . . 1221 Parts Sabotaged . | . . . Parts Stolen . | . . . Parts Stripped . | . . . Power Chain Reactions . | . . . Alert | -11 -10 -9 ------- Run | Yrd Mat Mat Peak Influence 463 | . 108 463 Initial 37 | . . 37 Average 119 | . 56 220 Maximum Alert Level 2 | . . 2 Low Security (%) 79 | 100 100 53 Level 1 11 | . . 25 Level 2 8 | . . 20 Level 3 . | . . . Level 4 . | . . . Level 5 . | . . . High Security . | . . . Max Security . | . . . Squads Dispatched 5 | . 1 4 Investigation 3 | . . 3 Extermination . | . . . Reinforcement 2 | . 1 1 Assault . | . . . Garrison . | . . . Intercept . | . . . Searches Triggered . | . . . Construction Impeded . | . . . Haulers Reinforced . | . . . Active Scanning Responses . | . . . Cargo Convoy Interrupts . | . . . Stealth | -11 -10 -9 --------- Run | Yrd Mat Mat Distress Signals . | . . . Communications Jammed . | . . . Distress Signals . | . . . Times Spotted 39 | . 7 32 Peak Tracking Total 15 | . 4 15 Tactical Retreats 3 | . . 3 Traps | -11 -10 -9 ------- Run | Yrd Mat Mat Traps Triggered 3 | . 2 1 Indirectly . | . . . Trap Hack Attempts . | . . . Triggered . | . . . Disarmed . | . . . Reprogrammed . | . . . Reused . | . . . Traps Extracted . | . . . Installed . | . . . Triggered . | . . . Machines | -11 -10 -9 ---------- Run | Yrd Mat Mat Machines Disabled 2 | . 1 1 Max in Single Turn 1 | . 1 1 Machines Repaired . | . . . Machines Dismantled . | . . . Machines Sabotaged . | . . . Overloaded Fab Kills . | . . . Hacking | -11 -10 -9 --------- Run | Yrd Mat Mat Machines Accessed 6 | . 3 3 Terminals 5 | . 2 3 Fabricators . | . . . Repair Stations . | . . . Recycling Units 1 | . 1 . Scanalyzers . | . . . Garrison Access . | . . . Total Hacks 12 | . 5 7 Successful 6 | . 4 2 Failed 6 | . 1 5 Catastrophic 3 | . . 3 Database Lockouts . | . . . Manual 2 | . 1 1 Terminals 11 | . 4 7 Fabricators . | . . . Repair Stations . | . . . Recycling Units 1 | . 1 . Scanalyzers . | . . . Garrison Access . | . . . Terminal Hacks 5 | . 3 2 Record 2 | . . 2 Branch Access Points 1 | . 1 . Terminal Index 1 | . 1 . Alert Level 1 | . 1 . Fabricator Hacks . | . . . Repair Station Hacks . | . . . Recycling Unit Hacks 1 | . 1 . Report Inventory 1 | . 1 . Scanalyzer . | . . . Garrison Access Hacks . | . . . Unauthorized Hacks . | . . . Terminals . | . . . Fabricators . | . . . Repair Stations . | . . . Recycling Units . | . . . Scanalyzers . | . . . Garrison Access . | . . . Data Cores Recovered . | . . . Used . | . . . Hacking Detections 4 | . 1 3 Full Trace Events 2 | . . 2 Feedback Events . | . . . Feedback Blocked . | . . . Robot Schematics Acquired . | . . . Robots Built . | . . . Authchips . | . . . Time . | . . . Total Robot Build Rating . | . . . Part Schematics Acquired . | . . . Parts Built . | . . . Authchips . | . . . Time . | . . . Total Part Build Rating . | . . . Parts Repaired . | . . . Time . | . . . Parts Recycled . | . . . Recycled Matter . | . . . Retrieved Matter . | . . . Retrieved Components . | . . . Parts Scanalyzed . | . . . Part Schematics Acquired . | . . . Parts Damaged . | . . . Bothacking | -11 -10 -9 ------------ Run | Yrd Mat Mat Used RIF Installer . | . . . Robots Hacked . | . . . Non-combat . | . . . Combat . | . . . Robot Hacks Applied . | . . . Relay Couplers Released . | . . . Fabnet Peak Effective % . | . . . Robots Rewired . | . . . Allies Hacked . | . . . Hacks Repelled . | . . . Allies | -11 -10 -9 -------- Run | Yrd Mat Mat Total Allies . | . . . Largest Group . | . . . Highest-Rated Group . | . . . Highest-Rated Ally . | . . . Total Orders . | . . . Ally Attacks . | . . . Total Damage . | . . . Kills . | . . . Allies Corrupted . | . . . Allies Melted . | . . . Intel | -11 -10 -9 ------- Run | Yrd Mat Mat Robot Analysis Total . | . . . Derelict Logs Recovered . | . . . Drone Launches . | . . . Drone Recoveries . | . . . Exploration | -11 -10 -9 ------------- Run | Yrd Mat Mat Turns Passed 471 | 69 197 205 Spaces Moved 438 | 48 131 259 Core 37 | 14 . 23 Treads . | . . . Legs 169 | 34 131 4 Wheels . | . . . Hover . | . . . Flight 232 | . . 232 Fastest Speed 37 | 50 120 37 Average Speed 74 | 122 120 42 Slowest Speed 190 | 150 190 120 Overloaded Moves . | . . . Propulsion Burnouts . | . . . Robots Hopped . | . . . Cave-ins Triggered . | . . . Exploration Rate (%) 18 | 3 30 22 Regions Visited 2 Branch Regions . Pre-discovered Areas . | . . . Known Exits Taken . | . . . Unknown Exits Taken 2 | 1 1 . Scrap Searched . | . . . Spaces Dug . | . . . Terrain Destroyed . | . . . Melee . | . . . Projectile . | . . . AOE . | . . . Terrain Rammed . | . . . Walls Destroyed . | . . . Machines Disabled . | . . . Actions | -11 -10 -9 --------- Run | Yrd Mat Mat Total 523 | 58 148 317 Wait 13 | . 2 11 Move 436 | 47 130 259 Hop . | . . . Pick Up 19 | 6 3 10 Fast Attach . | . . . Attach 19 | 5 1 13 Detach 2 | . . 2 Swap . | . . . Drop 1 | . . 1 Fire 31 | . 11 20 Melee . | . . . Ram 1 | . . 1 Kick 1 | . 1 . Crush . | . . . Escape Stasis . | . . . Rewire . | . . . Trap . | . . . Miscellaneous . | . . . Route ------- -11/Scrapyard -10/Materials (discovered 3 exits: *Mat / Min x2) -9/Materials History --------- Turn | Location | Event 14 | -11/Scrapyard | Discovered new exit (range 15) 70 | -11/Scrapyard | Entered Materials 87 | -10/Materials | Identified exit to Mines 241 | -10/Materials | Discovered new exit (range 16) 267 | -10/Materials | Entered another Materials area 267 | -9/Materials | Evolved 2 slots: Propulsion x2 304 | -9/Materials | Build established: Mutant 408 | -9/Materials | Lost 4 parts (1p2n1w) 456 | -9/Materials | Destroyed 10 combat bots 460 | -9/Materials | Core integrity fell below 50% 466 | -9/Materials | Core integrity fell below 20% 472 | -9/Materials | Destroyed by Y-45 Defender with Heavy Assault Rifle Last Messages --------------- Slammed into U-05 Engineer. Overheating: Terrain Scan Processor damaged (-3). R-06 Scavenger collects Aluminum Leg. Y-45 Defender heat damages Broken Heat Sink. K-01 Serf collects debris. Acquired Faulty Imp. Medium Laser. K-01 Serf destroyed. K-01 Serf collects debris. R-06 Scavenger collects Heat Sink. Acquired Imp. Medium Laser. K-01 Serf collects debris. G-34 Mercenary destroyed. K-01 Serf collects debris. Acquired Imp. Medium Laser. G-34 Mercenary destroyed. K-01 Serf collects debris. Imp. Medium Laser broken. Overheating: Short circuit. Overheating: Energy bleed (-19). Map ----- +----------------------------------------------------+ | ?????????????????????????????????????????????????? | | ?????????????????????????????????????????????????? | | ?????????????????????????????????????????????????? | | ?????????????????????????????????????????????????? | | ?????????????????????????????????????????????????? | | ?????????????????????????????????????????????????? | | ?????????????????????????????????????????????????? | | ??????????????????????????????? ???????????????? | | ??????????????????????????????? #??????????????? | | ??????????????????????????????? #??????????????? | | ??????????????????????????????# #??????????????? | | ??????????????????????????????# #??????????????? | | ??????????????????????????????# #??????????????? | | ??????????????????????????????# #??????????????? | | ??????????????????????????????# #????????####### | | ??????????????????????????????# #? ????# | | ??????????????????????????????# # ????# | | ??????????????????????????????# # ?????# """ | | ??????????????????###?????????# + ???????# """ | | ?????????????????##! ?###?????# ########## """ | | ?????????????????#! ##T####### # # | | ?????????????????#! g # """ # | | ?????????????????#! # """ #+##### | | ?????????????????#! [* # """ # #?? | | ?????????????????##! [[ gg%Yw %+ % + #?? | | ??????????????######## %[@ %[ #####= """ # #?? | | ????????+ u a u %== #???# """ # #?? | | ?????????????######## % !%%! #???# """ # #?? | | ????????????????????# " "k #???# # #?? | | ????????????????????# """ #???########## ### | | ??????????????????? + """ #????????????# | | ?????????????????? # #????????????# | | ???????????????? ## ##????????????# | | ??????????????? ??# """ #?????????????####### | | ??????????????####???# """ #???????????????????? | | ?????????????????????# """ #???????????????????? | | ?????????????????????# ? #???????????????????? | | ?????????????????????+ ? #???????????????????? | | ?????????????????????# ? #???????????????????? | | ?????????????????????? ]?[ #???????????????????? | | ?????????????????????? ]?! ???????????????###### | | ?????????????????????? ]?! ???????????????# T | | ??????????????????????????? ???????????????# | | ????????????????????????????????????????????#""" | | ????????????????????????????????????????????#""" | | ????????????????????????????????????????????#""" | | ????????????????????????????????????????????# | | ????????????????????????????????????????????###### | | ???????????????????????????????????????#+######### | | ???????????????????????????????????? | +----------------------------------------------------+ Best States ------------- Heat Dissipation 28 Energy Generation 10 Energy Capacity 250 Matter Stores 300 Matter Capacity 300 Sight Range 16 Terrain Scan Density 85 Evasion (%) 62 Item Schematics ----------------- None Robot Schematics ------------------ None Fabricated ------------ Nothing Alien Tech Used ----------------- None Achievements -------------- None Challenges ------------ None Game ------ Seed LatentSuspensionPod Manual? 0 Play Time 00:08:42 Cumulative 9.5 hours Start 2024.10.14 @ 21:10:40 End 2024.10.14 @ 21:18:10 Sessions 1 Manual Loads 0 Difficulty Rogue Special Mode None Game No. 13 Rogue 13 Adventurer 0 Explorer 0 Win Type - Total 0 Types 0/0/0/0/0/0/0/0/0 Lore% 13 Gallery% 13 Achievement% 15 Wizard Run 0 Options --------- Layout 1 ASCII 0 Keyboard 0 Movement Mouse Keybinds 0 Fullscreen 0 Font 20/SmallcapsGlow Map View 50x35 Zoom Use 0% Tactical HUD 0 Map Filters NONE Filters NONE Steam 1 RUN: 6f0900fd-480a-4ec8-ad0c-f6e91db3e653